[Event "*** Titled Tuesday Blitz"]
[Site "Chess.com"]
[Date "2018.11.06"]
[Round "7"]
[White "TomsKantans"]
[Black "ChainsOfFantasia"]
[Result "1-0"]
[WhiteElo "2490"]
[BlackElo "2352"]
[TimeControl "180+2"]
[EndTime "14:35:14 PST"]
[Termination "TomsKantans won by resignation"]

1. e4 {[%clk 0:03:01.9]} 1... e6 {[%clk 0:02:51.8]} 2. c4 {[%clk 0:03:01.9]}
2... d5 {[%clk 0:02:51.9]} 3. cxd5 {[%clk 0:03:03.8]} 3... exd5 {[%clk
0:02:53.5]} 4. exd5 {[%clk 0:03:05.7]} 4... Nf6 {[%clk 0:02:54]} 5. Nc3 {[%clk
0:03:06.7]} 5... Nxd5 {[%clk 0:02:54.4]} 6. Nf3 {[%clk 0:03:07]} 6... Be7 {[%clk
0:02:55.3]} 7. d4 {[%clk 0:03:08]} 7... O-O {[%clk 0:02:56]} 8. Bd3 {[%clk
0:03:09.1]} 8... Nxc3 {[%clk 0:02:48.7]} 9. bxc3 {[%clk 0:03:09.8]} 9... c5
{[%clk 0:02:49.8]} 10. O-O {[%clk 0:03:09.3]} 10... cxd4 {[%clk 0:02:48.9]} 11.
Nxd4 {[%clk 0:03:10.3]} 11... Bf6 {[%clk 0:02:46]} 12. Rb1 {[%clk 0:03:09.7]}
12... g6 {[%clk 0:02:41.8]} 13. Qf3 {[%clk 0:03:04.4]} 13... Nd7 {[%clk
0:02:37.9]} 14. Be4 {[%clk 0:02:54]} 14... Ne5 {[%clk 0:02:27.2]} 15. Qg3 {[%clk
0:02:52.9]} 15... Re8 {[%clk 0:02:20.5]} 16. Bxb7 {[%clk 0:02:49.1]} 16... Bh4
{[%clk 0:02:21.1]} 17. Qf4 {[%clk 0:02:30.6]} 17... Nd3 {[%clk 0:02:18.6]} 18.
Qf3 {[%clk 0:02:01.1]} 18... Ne5 {[%clk 0:01:43.2]} 19. Qd5 {[%clk 0:01:49.9]}
19... Rb8 {[%clk 0:01:27.2]} 20. Qxd8 {[%clk 0:01:19.9]} 20... Rxd8 {[%clk
0:01:27.1]} 21. Be4 {[%clk 0:01:20.4]} 21... Rxb1 {[%clk 0:01:14.3]} 22. Bxb1
{[%clk 0:01:22.3]} 22... Ba6 {[%clk 0:01:12.9]} 23. Re1 {[%clk 0:01:23.6]} 23...
Nd3 {[%clk 0:01:06.3]} 24. Bxd3 {[%clk 0:01:24]} 24... Bxd3 {[%clk 0:01:08.2]}
25. Be3 {[%clk 0:01:09.3]} 25... Rc8 {[%clk 0:01:05.2]} 26. Rc1 {[%clk
0:01:07.6]} 26... Be7 {[%clk 0:01:05.8]} 27. f3 {[%clk 0:01:04.7]} 27... Ba3
{[%clk 0:01:05.9]} 28. Rd1 {[%clk 0:01:02.2]} 28... Rxc3 {[%clk 0:01:06.4]} 29.
Kf2 {[%clk 0:01:02]} 29... Bc4 {[%clk 0:01:01.4]} 30. Nc6 {[%clk 0:00:43.1]}
30... a6 {[%clk 0:00:48.3]} 31. Rd8+ {[%clk 0:00:42.5]} 31... Bf8 {[%clk
0:00:35.5]} 32. Bh6 {[%clk 0:00:39.6]} 1-0

[Event "*** Titled Tuesday Blitz"]
[Site "Chess.com"]
[Date "2018.11.06"]
[Round "7"]
[White "Gr3egor"]
[Black "gmjlh"]
[Result "1-0"]
[WhiteElo "2491"]
[BlackElo "2612"]
[TimeControl "180+2"]
[EndTime "14:35:20 PST"]
[Termination "Gr3egor won by resignation"]

1. d4 {[%clk 0:03:01.9]} 1... Nf6 {[%clk 0:03:00.7]} 2. c4 {[%clk 0:03:03]} 2...
g6 {[%clk 0:03:01.7]} 3. Nc3 {[%clk 0:03:03.8]} 3... d5 {[%clk 0:03:02.8]} 4.
cxd5 {[%clk 0:03:05]} 4... Nxd5 {[%clk 0:03:04.7]} 5. e4 {[%clk 0:03:06.5]} 5...
Nxc3 {[%clk 0:03:05.6]} 6. bxc3 {[%clk 0:03:08.4]} 6... Bg7 {[%clk 0:03:06.9]}
7. Nf3 {[%clk 0:03:09.6]} 7... c5 {[%clk 0:03:07.7]} 8. Rb1 {[%clk 0:03:11.1]}
8... O-O {[%clk 0:03:04.9]} 9. Be2 {[%clk 0:03:12.1]} 9... b6 {[%clk 0:03:02.1]}
10. O-O {[%clk 0:03:11]} 10... Bb7 {[%clk 0:03:01.6]} 11. d5 {[%clk 0:03:10]}
11... Bxc3 {[%clk 0:03:01]} 12. Rb3 {[%clk 0:03:07.5]} 12... Bg7 {[%clk
0:03:01.7]} 13. h4 {[%clk 0:03:09]} 13... c4 {[%clk 0:02:32.5]} 14. Bxc4 {[%clk
0:03:09.7]} 14... Nd7 {[%clk 0:02:33.1]} 15. h5 {[%clk 0:03:09.7]} 15... Rc8
{[%clk 0:02:31.5]} 16. Be2 {[%clk 0:03:09.4]} 16... Nc5 {[%clk 0:02:27.5]} 17.
Re3 {[%clk 0:02:53.1]} 17... e6 {[%clk 0:02:26.3]} 18. hxg6 {[%clk 0:02:50.9]}
18... hxg6 {[%clk 0:02:25.9]} 19. Nd4 {[%clk 0:02:38.3]} 19... exd5 {[%clk
0:01:57.8]} 20. e5 {[%clk 0:02:39.2]} 20... Ne4 {[%clk 0:01:58.5]} 21. Bd3
{[%clk 0:02:31.2]} 21... Bxe5 {[%clk 0:01:55.9]} 22. Bb2 {[%clk 0:02:26.2]}
22... Bg7 {[%clk 0:01:48.4]} 23. Rh3 {[%clk 0:02:26.3]} 23... Qd7 {[%clk
0:01:44]} 24. Bb5 {[%clk 0:02:22.7]} 24... Qd6 {[%clk 0:01:38.4]} 25. Qg4 {[%clk
0:02:23.3]} 25... Qf6 {[%clk 0:00:28.4]} 26. Nc6 {[%clk 0:02:22.2]} 26... Bxc6
{[%clk 0:00:25.2]} 27. Bxf6 {[%clk 0:02:22.9]} 27... Nxf6 {[%clk 0:00:22.4]} 28.
Qa4 {[%clk 0:02:22.4]} 28... Bxb5 {[%clk 0:00:20.4]} 29. Qxb5 {[%clk 0:02:24.3]}
29... Rc7 {[%clk 0:00:18.1]} 30. f3 {[%clk 0:02:15.3]} 30... Rd8 {[%clk
0:00:18]} 31. Rd1 {[%clk 0:02:15.4]} 31... Bf8 {[%clk 0:00:18.9]} 32. Qb2 {[%clk
0:02:14.8]} 32... Kg7 {[%clk 0:00:18]} 33. g4 {[%clk 0:02:14.6]} 33... Bc5+
{[%clk 0:00:11.2]} 34. Kg2 {[%clk 0:02:14.7]} 34... d4 {[%clk 0:00:12.4]} 35.
Qd2 {[%clk 0:02:13.6]} 35... Nd5 {[%clk 0:00:05.5]} 36. Qh6+ {[%clk 0:02:07.5]}
36... Kf6 {[%clk 0:00:05.7]} 37. Qh4+ {[%clk 0:02:08.8]} 37... Ke6 {[%clk
0:00:05.6]} 38. Qxd8 {[%clk 0:02:09.9]} 38... Ne3+ {[%clk 0:00:06.3]} 39. Kh1
{[%clk 0:02:10.9]} 39... Nxd1 {[%clk 0:00:03.6]} 40. Qxc7 {[%clk 0:02:12]} 40...
Nf2+ {[%clk 0:00:05.1]} 41. Kg2 {[%clk 0:02:13.4]} 41... Nxh3 {[%clk 0:00:07]}
42. Kxh3 {[%clk 0:02:15.3]} 42... f5 {[%clk 0:00:07.1]} 43. Qg7 {[%clk
0:02:10.3]} 43... fxg4+ {[%clk 0:00:07.2]} 44. Kxg4 {[%clk 0:02:11.2]} 44... Kd5
{[%clk 0:00:08.4]} 45. Qxg6 {[%clk 0:02:11.4]} 45... Kc4 {[%clk 0:00:10.3]} 46.
Qc2+ {[%clk 0:02:12.6]} 46... Kd5 {[%clk 0:00:11.7]} 47. f4 {[%clk 0:02:13.1]}
47... Bb4 {[%clk 0:00:08.8]} 48. Qb3+ {[%clk 0:02:07.4]} 1-0

[Event "*** Titled Tuesday Blitz"]
[Site "Chess.com"]
[Date "2018.11.06"]
[Round "7"]
[White "ShadowJolteon"]
[Black "albi1999"]
[Result "1-0"]
[WhiteElo "2382"]
[BlackElo "2460"]
[TimeControl "180+2"]
[EndTime "14:35:21 PST"]
[Termination "ShadowJolteon won by resignation"]

1. d4 {[%clk 0:03:01.9]} 1... d5 {[%clk 0:03:00.7]} 2. c4 {[%clk 0:02:59]} 2...
e6 {[%clk 0:03:00.6]} 3. Nf3 {[%clk 0:02:59.5]} 3... Nf6 {[%clk 0:03:01.5]} 4.
g3 {[%clk 0:03:00.5]} 4... Bb4+ {[%clk 0:03:02.3]} 5. Bd2 {[%clk 0:03:00.5]}
5... Bd6 {[%clk 0:03:03.7]} 6. Bg2 {[%clk 0:03:00.1]} 6... c6 {[%clk 0:03:05]}
7. O-O {[%clk 0:02:44.6]} 7... Nbd7 {[%clk 0:03:04.9]} 8. Bg5 {[%clk 0:02:43]}
8... O-O {[%clk 0:03:05.3]} 9. Nbd2 {[%clk 0:02:43.1]} 9... h6 {[%clk
0:03:06.2]} 10. Bxf6 {[%clk 0:02:37.5]} 10... Nxf6 {[%clk 0:03:08.1]} 11. Qc2
{[%clk 0:02:35.4]} 11... b6 {[%clk 0:03:08.9]} 12. e4 {[%clk 0:02:28.1]} 12...
Be7 {[%clk 0:03:08.3]} 13. Rfd1 {[%clk 0:02:07.3]} 13... Bb7 {[%clk 0:03:06.3]}
14. Ne5 {[%clk 0:01:59]} 14... Rc8 {[%clk 0:02:49.8]} 15. Rac1 {[%clk
0:01:56.9]} 15... c5 {[%clk 0:02:43.7]} 16. exd5 {[%clk 0:01:46.4]} 16... exd5
{[%clk 0:02:42.6]} 17. Qa4 {[%clk 0:01:47]} 17... Qc7 {[%clk 0:02:19.4]} 18.
cxd5 {[%clk 0:01:44.7]} 18... Bxd5 {[%clk 0:02:17.2]} 19. Bxd5 {[%clk 0:01:44]}
19... Nxd5 {[%clk 0:02:19.1]} 20. Ne4 {[%clk 0:01:38.1]} 20... Rfd8 {[%clk
0:02:12.7]} 21. Nd3 {[%clk 0:01:36.1]} 21... c4 {[%clk 0:01:37]} 22. Ne5 {[%clk
0:01:31.2]} 22... Qb7 {[%clk 0:01:36.6]} 23. Rxc4 {[%clk 0:01:19.7]} 23... b5
{[%clk 0:01:27.7]} 24. Qb3 {[%clk 0:01:20.4]} 24... Rxc4 {[%clk 0:00:52]} 25.
Nxc4 {[%clk 0:01:22.3]} 25... Nf4 {[%clk 0:00:49.9]} 26. Qf3 {[%clk 0:01:13.5]}
26... Nd5 {[%clk 0:00:21.4]} 27. Ne5 {[%clk 0:01:12.1]} 27... Bf8 {[%clk
0:00:21.8]} 28. Rc1 {[%clk 0:01:05.2]} 28... f6 {[%clk 0:00:22.2]} 29. Nc6
{[%clk 0:01:02.8]} 29... Rc8 {[%clk 0:00:21.6]} 30. Nd6 {[%clk 0:01:01.5]} 30...
Rxc6 {[%clk 0:00:08.7]} 31. Qxd5+ {[%clk 0:01:01.9]} 31... Kh8 {[%clk
0:00:10.6]} 1-0

[Event "*** Titled Tuesday Blitz"]
[Site "Chess.com"]
[Date "2018.11.06"]
[Round "7"]
[White "Muisback26"]
[Black "GianmarcoVaR"]
[Result "1-0"]
[WhiteElo "2804"]
[BlackElo "2546"]
[TimeControl "180+2"]
[EndTime "14:35:23 PST"]
[Termination "Muisback26 won by resignation"]

1. e4 {[%clk 0:03:01.7]} 1... g6 {[%clk 0:02:55.2]} 2. d4 {[%clk 0:03:02.3]}
2... Bg7 {[%clk 0:02:56.3]} 3. Nc3 {[%clk 0:03:03.8]} 3... d6 {[%clk 0:02:56]}
4. Be3 {[%clk 0:03:04.9]} 4... a6 {[%clk 0:02:56.3]} 5. Qd2 {[%clk 0:03:06.2]}
5... b5 {[%clk 0:02:57.1]} 6. O-O-O {[%clk 0:03:06.8]} 6... Bb7 {[%clk
0:02:57.7]} 7. f3 {[%clk 0:03:07.8]} 7... Nd7 {[%clk 0:02:57.6]} 8. h4 {[%clk
0:03:09.1]} 8... h6 {[%clk 0:02:56.6]} 9. Nh3 {[%clk 0:03:08.9]} 9... c5 {[%clk
0:02:54.2]} 10. Kb1 {[%clk 0:03:09.6]} 10... cxd4 {[%clk 0:02:53.5]} 11. Bxd4
{[%clk 0:03:10.6]} 11... Ngf6 {[%clk 0:02:53]} 12. g4 {[%clk 0:03:09.5]} 12...
Ne5 {[%clk 0:02:44.5]} 13. g5 {[%clk 0:03:07.9]} 13... hxg5 {[%clk 0:02:42.2]}
14. Nxg5 {[%clk 0:03:08.5]} 14... Qc7 {[%clk 0:02:14.2]} 15. f4 {[%clk 0:03:08]}
15... Ned7 {[%clk 0:02:13.7]} 16. Bg2 {[%clk 0:03:03.3]} 16... e5 {[%clk
0:02:10.8]} 17. Be3 {[%clk 0:03:00.6]} 17... Ng4 {[%clk 0:02:10.1]} 18. f5
{[%clk 0:02:59.7]} 18... Nxe3 {[%clk 0:02:07.9]} 19. Qxe3 {[%clk 0:03:01.6]}
19... gxf5 {[%clk 0:02:08.3]} 20. Bh3 {[%clk 0:02:10.7]} 20... f4 {[%clk
0:01:48.1]} 21. Qg1 {[%clk 0:02:01.9]} 21... Bf6 {[%clk 0:01:47.5]} 22. Qg4
{[%clk 0:01:54.4]} 22... Nb6 {[%clk 0:01:46]} 23. Qf5 {[%clk 0:01:53.7]} 23...
Ke7 {[%clk 0:01:38.8]} 24. Nxf7 {[%clk 0:01:31]} 24... Bc8 {[%clk 0:01:34.4]}
25. Qg6 {[%clk 0:01:32.1]} 25... Bxh3 {[%clk 0:01:35.1]} 26. Nxh8 {[%clk
0:01:33.4]} 26... Be6 {[%clk 0:00:50.2]} 27. Qh7+ {[%clk 0:01:33.2]} 27... Kd8
{[%clk 0:00:51.5]} 28. Qh6 {[%clk 0:01:34.3]} 28... Qe7 {[%clk 0:00:23.3]} 29.
Ng6 {[%clk 0:01:33.2]} 29... Qf7 {[%clk 0:00:21.3]} 30. Rxd6+ {[%clk 0:01:29.7]}
30... Kc7 {[%clk 0:00:21.4]} 31. Nxe5 {[%clk 0:01:29.1]} 31... Bxe5 {[%clk
0:00:09.9]} 32. Rxe6 {[%clk 0:01:29.4]} 32... Nd7 {[%clk 0:00:11.2]} 33. Nd5+
{[%clk 0:01:29.2]} 33... Kb7 {[%clk 0:00:12.7]} 34. Re7 {[%clk 0:01:26.1]} 34...
Qf8 {[%clk 0:00:03.3]} 35. Qb6+ {[%clk 0:01:25.5]} 1-0

[Event "*** Titled Tuesday Blitz"]
[Site "Chess.com"]
[Date "2018.11.06"]
[Round "7"]
[White "Ar4uha"]
[Black "Polish_fighter3000"]
[Result "0-1"]
[WhiteElo "2619"]
[BlackElo "2973"]
[TimeControl "180+2"]
[EndTime "14:35:25 PST"]
[Termination "Polish_fighter3000 won by resignation"]

1. e4 {[%clk 0:03:01.9]} 1... c5 {[%clk 0:02:56.3]} 2. Nf3 {[%clk 0:03:02.9]}
2... e6 {[%clk 0:02:57.9]} 3. c3 {[%clk 0:03:03.2]} 3... d5 {[%clk 0:02:58.2]}
4. exd5 {[%clk 0:03:05.1]} 4... Qxd5 {[%clk 0:02:59.4]} 5. d4 {[%clk 0:03:07]}
5... Nf6 {[%clk 0:03:00.6]} 6. Na3 {[%clk 0:03:08.5]} 6... Nc6 {[%clk
0:02:52.6]} 7. Nb5 {[%clk 0:03:07.9]} 7... Qd7 {[%clk 0:02:54]} 8. dxc5 {[%clk
0:03:09.5]} 8... Bxc5 {[%clk 0:02:52.3]} 9. Qxd7+ {[%clk 0:03:09.1]} 9... Kxd7
{[%clk 0:02:54.2]} 10. Bf4 {[%clk 0:03:09.1]} 10... Ne4 {[%clk 0:02:49.3]} 11.
Rd1+ {[%clk 0:03:05.7]} 11... Ke7 {[%clk 0:02:49.3]} 12. Be3 {[%clk 0:03:02.4]}
12... Bxe3 {[%clk 0:02:47.9]} 13. fxe3 {[%clk 0:03:04.3]} 13... b6 {[%clk
0:02:48.1]} 14. Bd3 {[%clk 0:03:04.2]} 14... Nc5 {[%clk 0:02:46.6]} 15. Bc2
{[%clk 0:03:05.3]} 15... Bb7 {[%clk 0:02:45.4]} 16. Nd6 {[%clk 0:03:04]} 16...
Ba6 {[%clk 0:02:23.5]} 17. b4 {[%clk 0:03:00.8]} 17... Nb7 {[%clk 0:02:24.8]}
18. Nxb7 {[%clk 0:02:27.7]} 18... Bxb7 {[%clk 0:02:26.7]} 19. Ng5 {[%clk
0:02:24.1]} 19... Ne5 {[%clk 0:02:22.6]} 20. Be4 {[%clk 0:02:10.3]} 20... Rhb8
{[%clk 0:02:22.8]} 21. Ke2 {[%clk 0:02:01.6]} 21... a5 {[%clk 0:02:13.3]} 22. b5
{[%clk 0:01:31.2]} 22... h6 {[%clk 0:02:07.5]} 23. Bxb7 {[%clk 0:01:31.9]} 23...
Rxb7 {[%clk 0:02:09.4]} 24. Nf3 {[%clk 0:01:33]} 24... Nxf3 {[%clk 0:02:02.1]}
25. gxf3 {[%clk 0:01:34.9]} 25... Rc8 {[%clk 0:02:03.3]} 26. Rd3 {[%clk
0:01:36.1]} 26... Rc4 {[%clk 0:01:54.9]} 27. f4 {[%clk 0:01:31]} 27... g5 {[%clk
0:01:53.9]} 28. Kf3 {[%clk 0:00:59.9]} 28... Rbc7 {[%clk 0:01:49.8]} 29. Rc1
{[%clk 0:01:00.4]} 29... gxf4 {[%clk 0:01:46.7]} 30. exf4 {[%clk 0:01:01.5]}
30... R7c5 {[%clk 0:01:47.8]} 31. Rcd1 {[%clk 0:00:58.1]} 31... Rxb5 {[%clk
0:01:45.6]} 32. Rd7+ {[%clk 0:00:59]} 32... Kf6 {[%clk 0:01:47.2]} 33. Rb7
{[%clk 0:01:00.6]} 33... Rxc3+ {[%clk 0:01:37.2]} 34. Kg4 {[%clk 0:01:01.6]}
34... Kg6 {[%clk 0:01:27.1]} 35. Rd8 {[%clk 0:00:39.3]} 35... h5+ {[%clk
0:01:22.2]} 36. Kh4 {[%clk 0:00:40.3]} 36... Rf5 {[%clk 0:01:23.5]} 37. Rd4
{[%clk 0:00:34]} 37... b5 {[%clk 0:01:20.9]} 38. Rb8 {[%clk 0:00:30.1]} 38...
Rc4 {[%clk 0:01:12.9]} 0-1

[Event "*** Titled Tuesday Blitz"]
[Site "Chess.com"]
[Date "2018.11.06"]
[Round "7"]
[White "Bauxi435"]
[Black "Alex_Banzea"]
[Result "1-0"]
[WhiteElo "2442"]
[BlackElo "2314"]
[TimeControl "180+2"]
[EndTime "14:35:32 PST"]
[Termination "Bauxi435 won on time"]

1. d4 {[%clk 0:03:01.9]} 1... Nf6 {[%clk 0:02:55.1]} 2. c4 {[%clk 0:03:01.7]}
2... e6 {[%clk 0:02:37.6]} 3. Nc3 {[%clk 0:03:02.2]} 3... Bb4 {[%clk 0:02:37.8]}
4. f3 {[%clk 0:03:02.5]} 4... c5 {[%clk 0:02:38.5]} 5. d5 {[%clk 0:03:02.7]}
5... d6 {[%clk 0:02:40.2]} 6. e4 {[%clk 0:03:03.5]} 6... b5 {[%clk 0:02:41]} 7.
Bd3 {[%clk 0:02:57.7]} 7... O-O {[%clk 0:02:40.1]} 8. Ne2 {[%clk 0:02:53.7]}
8... a6 {[%clk 0:02:38]} 9. O-O {[%clk 0:02:53.2]} 9... exd5 {[%clk 0:02:39.1]}
10. cxd5 {[%clk 0:02:53.2]} 10... Nbd7 {[%clk 0:02:38.8]} 11. Kh1 {[%clk
0:02:50.7]} 11... Ne5 {[%clk 0:02:39.7]} 12. Bc2 {[%clk 0:02:50.6]} 12... Re8
{[%clk 0:02:40.2]} 13. Ng3 {[%clk 0:02:46.3]} 13... c4 {[%clk 0:02:36.1]} 14. a4
{[%clk 0:02:39.8]} 14... Rb8 {[%clk 0:02:36]} 15. axb5 {[%clk 0:02:40.8]} 15...
axb5 {[%clk 0:02:37.9]} 16. Be3 {[%clk 0:02:36.9]} 16... Nfd7 {[%clk 0:01:57.2]}
17. f4 {[%clk 0:02:31.4]} 17... Ng6 {[%clk 0:01:52]} 18. e5 {[%clk 0:02:13.3]}
18... dxe5 {[%clk 0:01:51]} 19. f5 {[%clk 0:02:14.8]} 19... Nf4 {[%clk
0:01:52.3]} 20. Nce4 {[%clk 0:02:13]} 20... Nf6 {[%clk 0:01:48.1]} 21. Nxf6+
{[%clk 0:02:02.5]} 21... Qxf6 {[%clk 0:01:50]} 22. Ne4 {[%clk 0:01:57.4]} 22...
Qd8 {[%clk 0:01:50.8]} 23. Qg4 {[%clk 0:01:37.8]} 23... h5 {[%clk 0:01:33.5]}
24. Qg3 {[%clk 0:01:27.6]} 24... Bxf5 {[%clk 0:01:34.1]} 25. Bxf4 {[%clk
0:01:23.9]} 25... exf4 {[%clk 0:01:22.8]} 26. Qxf4 {[%clk 0:01:24.3]} 26... Bg6
{[%clk 0:01:20.5]} 27. Rad1 {[%clk 0:01:21.5]} 27... Qe7 {[%clk 0:01:17.2]} 28.
d6 {[%clk 0:01:14.9]} 28... Qe5 {[%clk 0:01:17.8]} 29. d7 {[%clk 0:01:12.3]}
29... Bxe4 {[%clk 0:01:11.4]} 30. Qxf7+ {[%clk 0:01:01.9]} 30... Kh7 {[%clk
0:01:10.8]} 31. Bxe4+ {[%clk 0:01:00.1]} 31... Qxe4 {[%clk 0:01:12]} 32. Qxh5+
{[%clk 0:01:00.4]} 32... Kg8 {[%clk 0:01:12.5]} 33. dxe8=Q+ {[%clk 0:01:00.8]}
33... Rxe8 {[%clk 0:01:13.7]} 34. Qxb5 {[%clk 0:01:01.7]} 1-0

[Event "*** Titled Tuesday Blitz"]
[Site "Chess.com"]
[Date "2018.11.06"]
[Round "7"]
[White "volcanoexplorer"]
[Black "ruvat"]
[Result "1-0"]
[WhiteElo "2465"]
[BlackElo "2308"]
[TimeControl "180+2"]
[EndTime "14:35:35 PST"]
[Termination "volcanoexplorer won by resignation"]

1. e4 {[%clk 0:03:01.9]} 1... d6 {[%clk 0:03:00.8]} 2. d4 {[%clk 0:03:02.5]}
2... Nf6 {[%clk 0:03:01.6]} 3. Nc3 {[%clk 0:03:02.2]} 3... g6 {[%clk 0:03:02.3]}
4. h3 {[%clk 0:02:59.8]} 4... Bg7 {[%clk 0:03:01.4]} 5. Be3 {[%clk 0:03:01]}
5... O-O {[%clk 0:02:36.4]} 6. Nf3 {[%clk 0:02:59.7]} 6... c6 {[%clk 0:02:37.2]}
7. g3 {[%clk 0:03:00.5]} 7... b5 {[%clk 0:02:36.2]} 8. a3 {[%clk 0:02:58.7]}
8... Qc7 {[%clk 0:02:26.4]} 9. Bg2 {[%clk 0:02:59.4]} 9... a6 {[%clk 0:02:24.3]}
10. O-O {[%clk 0:03:00.2]} 10... e5 {[%clk 0:02:25]} 11. dxe5 {[%clk 0:02:58.6]}
11... dxe5 {[%clk 0:02:25.8]} 12. Qe2 {[%clk 0:02:50.1]} 12... Nbd7 {[%clk
0:02:25.7]} 13. Rad1 {[%clk 0:02:47.9]} 13... Re8 {[%clk 0:02:26]} 14. Nh2
{[%clk 0:02:39.6]} 14... Bb7 {[%clk 0:02:16.4]} 15. f4 {[%clk 0:02:35.8]} 15...
c5 {[%clk 0:02:05.5]} 16. f5 {[%clk 0:02:19]} 16... b4 {[%clk 0:01:50]} 17. Nd5
{[%clk 0:02:13.7]} 17... Nxd5 {[%clk 0:01:41]} 18. exd5 {[%clk 0:02:15.6]} 18...
Qd6 {[%clk 0:01:41.7]} 19. Ng4 {[%clk 0:02:11.2]} 19... e4 {[%clk 0:01:23.6]}
20. Bf4 {[%clk 0:01:49.5]} 20... Qb6 {[%clk 0:01:23.7]} 21. fxg6 {[%clk
0:01:40.4]} 21... Qxg6 {[%clk 0:01:12.4]} 22. axb4 {[%clk 0:01:36.1]} 22... cxb4
{[%clk 0:01:06.1]} 23. Ne3 {[%clk 0:01:25.6]} 23... Bxb2 {[%clk 0:00:55.4]} 24.
Nc4 {[%clk 0:01:26.4]} 24... Be5 {[%clk 0:00:35.5]} 25. Nxe5 {[%clk 0:01:07.1]}
25... Nxe5 {[%clk 0:00:35]} 26. Qxe4 {[%clk 0:01:01.4]} 26... Qxe4 {[%clk
0:00:23.6]} 27. Bxe4 {[%clk 0:01:03.3]} 27... Nc4 {[%clk 0:00:24.5]} 28. Rfe1
{[%clk 0:01:02.3]} 28... a5 {[%clk 0:00:23.1]} 29. Bd3 {[%clk 0:00:54.8]} 29...
Nb2 {[%clk 0:00:22.1]} 30. Bb5 {[%clk 0:00:40]} 30... Rxe1+ {[%clk 0:00:19.8]}
31. Rxe1 {[%clk 0:00:41.9]} 31... Bxd5 {[%clk 0:00:19.1]} 32. Re5 {[%clk
0:00:42.8]} 32... Be6 {[%clk 0:00:19.4]} 33. Rg5+ {[%clk 0:00:43]} 1-0

[Event "*** Titled Tuesday Blitz"]
[Site "Chess.com"]
[Date "2018.11.06"]
[Round "7"]
[White "severomorskij"]
[Black "pultineviciuspaulius"]
[Result "1-0"]
[WhiteElo "2703"]
[BlackElo "2577"]
[TimeControl "180+2"]
[EndTime "14:35:46 PST"]
[Termination "severomorskij won by resignation"]

1. d4 {[%clk 0:02:58.8]} 1... Nf6 {[%clk 0:03:00.6]} 2. Bg5 {[%clk 0:02:56.7]}
2... Ne4 {[%clk 0:02:56.7]} 3. Bf4 {[%clk 0:02:57.6]} 3... d5 {[%clk 0:02:58.1]}
4. e3 {[%clk 0:02:58.3]} 4... Nd7 {[%clk 0:02:56.4]} 5. Bd3 {[%clk 0:02:58.4]}
5... c5 {[%clk 0:02:54.1]} 6. Bxe4 {[%clk 0:02:57.5]} 6... dxe4 {[%clk
0:02:54.9]} 7. Nc3 {[%clk 0:02:58.6]} 7... Qa5 {[%clk 0:02:36.8]} 8. Ne2 {[%clk
0:02:53.8]} 8... cxd4 {[%clk 0:02:35.4]} 9. Qxd4 {[%clk 0:02:50.6]} 9... Nf6
{[%clk 0:01:56.2]} 10. b4 {[%clk 0:02:05.3]} 10... Qa6 {[%clk 0:01:28]} 11. Rd1
{[%clk 0:01:57.6]} 11... Bg4 {[%clk 0:01:09]} 12. Be5 {[%clk 0:01:13.4]} 12...
Qc6 {[%clk 0:00:49]} 13. O-O {[%clk 0:00:51.5]} 13... Bxe2 {[%clk 0:00:44.7]}
14. Nxe2 {[%clk 0:00:52.1]} 14... e6 {[%clk 0:00:46.1]} 15. Bxf6 {[%clk
0:00:50.4]} 15... gxf6 {[%clk 0:00:46.7]} 16. Qxf6 {[%clk 0:00:51.2]} 16... Rg8
{[%clk 0:00:48.2]} 17. Ng3 {[%clk 0:00:49]} 17... Bxb4 {[%clk 0:00:46.3]} 18.
Qh4 {[%clk 0:00:41.5]} 18... h6 {[%clk 0:00:11.4]} 19. Qxh6 {[%clk 0:00:37.7]}
19... Bd6 {[%clk 0:00:08.1]} 20. Qh7 {[%clk 0:00:33.5]} 20... Ke7 {[%clk
0:00:03.4]} 21. Qh4+ {[%clk 0:00:34.2]} 21... Ke8 {[%clk 0:00:03.5]} 22. Nxe4
{[%clk 0:00:29.5]} 22... Be7 {[%clk 0:00:03.4]} 23. Qf4 {[%clk 0:00:30.5]} 23...
f5 {[%clk 0:00:03.7]} 24. Ng3 {[%clk 0:00:31.5]} 24... Kf7 {[%clk 0:00:03.8]}
25. e4 {[%clk 0:00:30.4]} 25... Bg5 {[%clk 0:00:02.5]} 26. Qf3 {[%clk
0:00:27.5]} 26... f4 {[%clk 0:00:04]} 27. Ne2 {[%clk 0:00:23.8]} 27... Rgf8
{[%clk 0:00:04.9]} 28. Qh5+ {[%clk 0:00:22.3]} 28... Kf6 {[%clk 0:00:06.1]} 29.
e5+ {[%clk 0:00:23.3]} 1-0